bitfinex-derivatives/quotes_BTCF0:USTF0_20250704
["timestamp","ask_amount","ask_price","bid_price","bid_amount"]
[1751665225420,2.50006657,107830.0,107820.0,0.13470678]
[1751665226830,1.77846657,107830.0,107820.0,0.13470678]
[1751665227032,2.50006657,107830.0,107820.0,0.17181969]
[1751665228323,1.59680657,107830.0,107820.0,0.35728649]
[1751665228525,0.20984307,107830.0,107820.0,0.94220058]
[1751665228729,0.20984307,107830.0,107820.0,0.95196835]
[1751665228730,0.43175687,107830.0,107820.0,0.95196835]
[1751665229030,0.61720647,107830.0,107820.0,1.02619333]
[1751665229421,0.82720647,107830.0,107820.0,1.02619333]
[1751665229829,0.59720647,107830.0,107820.0,1.02619333]
[1751665230033,0.83720647,107830.0,107820.0,1.02619333]
[1751665230226,0.61720647,107830.0,107820.0,1.02619333]
[1751665230524,0.87720647,107830.0,107820.0,1.02619333]
[1751665230726,0.59720647,107830.0,107820.0,1.02619333]
[1751665230930,0.61720647,107830.0,107820.0,1.02619333]
[1751665231529,0.61720647,107830.0,107820.0,0.95196835]
[1751665232023,0.32184297,107830.0,107820.0,1.43281985]
[1751665232631,0.32184297,107830.0,107820.0,1.24733185]
[1751665234628,0.13639337,107830.0,107820.0,1.24733185]
[1751665234829,0.32184297,107830.0,107820.0,1.24733185]
[1751665235935,0.32184297,107830.0,107820.0,1.32155683]
[1751665237535,0.32184297,107830.0,107820.0,1.02619333]
[1751665237737,0.32184297,107830.0,107820.0,1.32155683]
[1751665239038,0.32184297,107830.0,107820.0,1.02619333]
[1751665239637,0.31484297,107830.0,107820.0,1.32155683]
[1751665240138,0.31484297,107830.0,107820.0,2.15975683]
[1751665244342,0.31484297,107830.0,107820.0,2.14525878]
[1751665244543,0.31484297,107830.0,107820.0,2.15975397]
[1751665244943,0.20484297,107830.0,107820.0,2.15975397]
[1751665245142,0.20484297,107830.0,107820.0,2.16075397]
[1751665245443,0.20484297,107830.0,107820.0,2.16275397]
[1751665245838,0.5749894,107840.0,107820.0,2.30184617]
[1751665246039,0.1854496,107830.0,107820.0,1.91238267]
[1751665246234,0.1854496,107830.0,107820.0,2.20774617]
[1751665249645,0.1854496,107830.0,107820.0,2.13352119]
[1751665250646,0.1854496,107830.0,107820.0,2.13252119]
[1751665250846,0.1854496,107830.0,107820.0,2.13352119]
[1751665252248,0.1854496,107830.0,107820.0,1.54279419]
[1751665252450,0.1854496,107830.0,107820.0,2.13352119]
[1751665254149,0.1854496,107830.0,107820.0,2.20774617]
[1751665256445,0.7468726,107840.0,107830.0,0.1854496]
[1751665256638,0.7468726,107840.0,107830.0,0.55086178]
[1751665256639,0.9968726,107840.0,107830.0,0.55086178]
[1751665257352,1.0625726,107840.0,107830.0,0.49530829]
[1751665259648,1.0625726,107840.0,107830.0,0.56953327]
[1751665260054,1.0625726,107840.0,107830.0,0.60113327]
[1751665260454,1.0625726,107840.0,107830.0,0.63243327]
[1751665260654,1.0625726,107840.0,107830.0,0.63417327]
[1751665265855,1.0625726,107840.0,107830.0,0.55994829]
[1751665266846,0.7672091,107840.0,107830.0,0.61557099]
[1751665267052,1.0625726,107840.0,107830.0,0.61557099]
[1751665267654,0.9698498,107840.0,107830.0,0.63417327]
[1751665273860,0.9698498,107840.0,107830.0,0.33880977]
[1751665274063,0.9698498,107840.0,107830.0,0.57127327]
[1751665278965,0.9698498,107840.0,107830.0,0.57118287]
[1751665279870,0.6744863,107840.0,107830.0,0.57118287]
[1751665280164,0.9698498,107840.0,107830.0,0.57118287]
[1751665280369,0.6744863,107840.0,107830.0,0.57118287]
[1751665280569,0.9698498,107840.0,107830.0,0.57118287]
[1751665281167,0.9365498,107840.0,107830.0,0.57118287]
[1751665281364,0.9697498,107840.0,107830.0,0.57118287]
[1751665281859,0.9697498,107840.0,107830.0,0.57116956]
[1751665284769,0.9365498,107840.0,107830.0,0.57116956]
[1751665287069,0.9365498,107840.0,107830.0,0.60286956]
[1751665288665,0.9365498,107840.0,107830.0,0.63396956]
[1751665296784,0.9365498,107840.0,107830.0,0.66546956]
[1751665305992,0.9041498,107840.0,107830.0,0.66546956]
[1751665310194,0.9041498,107840.0,107830.0,0.66555018]
[1751665310498,0.9041498,107840.0,107830.0,0.6655502]
[1751665311795,0.9041498,107840.0,107830.0,0.66555022]
[1751665313300,0.5759863,107840.0,107830.0,0.66555022]
[1751665314198,0.8713498,107840.0,107830.0,0.66555022]
[1751665315295,0.2693993,107840.0,107830.0,0.66555022]
[1751665315593,0.3608,107870.0,107840.0,0.0463543]
[1751665315801,0.5461808,107870.0,107860.0,0.776125]
[1751665315999,0.5461808,107870.0,107860.0,0.80001386]
[1751665316198,0.5461808,107870.0,107860.0,0.86201386]
[1751665316398,0.5461808,107870.0,107860.0,0.91750115]
[1751665316601,0.5461808,107870.0,107860.0,0.62213765]
[1751665316799,0.8425443,107870.0,107860.0,0.32677415]
[1751665317000,0.8445443,107870.0,107860.0,0.62213765]
[1751665318299,0.8445443,107870.0,107860.0,0.59419208]
[1751665318597,0.8435443,107870.0,107860.0,0.59419208]
[1751665318802,0.8445443,107870.0,107860.0,0.59419208]
[1751665319002,0.8445443,107870.0,107860.0,0.61272093]
[1751665319300,0.8445443,107870.0,107860.0,0.59418081]
[1751665319696,0.8445443,107870.0,107860.0,0.59592081]
[1751665319903,0.8445443,107870.0,107860.0,0.60523107]
[1751665320702,0.8445443,107870.0,107860.0,0.59075893]
[1751665321503,0.8445443,107870.0,107860.0,0.58144867]
[1751665322097,0.5491808,107870.0,107860.0,0.58144867]
[1751665324203,0.5471808,107870.0,107860.0,0.58144867]
[1751665324501,0.5471808,107870.0,107860.0,0.87681217]
[1751665324708,0.5461808,107870.0,107860.0,0.87681217]
[1751665325305,0.5461808,107870.0,107860.0,0.58144867]
[1751665328710,0.5461808,107870.0,107860.0,0.63693596]
[1751665330308,0.5461808,107870.0,107860.0,0.58144867]
[1751665331211,0.5461808,107870.0,107860.0,0.63693596]
[1751665332108,0.5461808,107870.0,107860.0,0.34157246]
[1751665332406,0.8415443,107870.0,107860.0,0.57493596]
[1751665332607,0.9054443,107870.0,107860.0,0.57493596]
[1751665332809,0.1854152,107850.0,107840.0,0.35223232]
[1751665333010,0.4807787,107850.0,107840.0,0.6198511]
[1751665333201,0.5446787,107850.0,107840.0,0.5271355]
[1751665334503,0.5466787,107850.0,107840.0,0.5271355]
[1751665334904,0.5476787,107850.0,107840.0,0.5271355]
[1751665335108,0.5476787,107850.0,107840.0,0.231772]
[1751665335304,0.5476787,107850.0,107840.0,0.5271355]
[1751665337311,0.2523152,107850.0,107840.0,0.5271355]
[1751665337509,0.5476787,107850.0,107840.0,0.5271355]
[1751665341111,0.2523152,107850.0,107840.0,0.5271355]
[1751665341513,0.5476787,107850.0,107840.0,0.5271355]
[1751665342916,0.5476787,107850.0,107840.0,0.5601355]
[1751665344815,0.5476787,107850.0,107840.0,0.64854322]
[1751665346920,0.5476787,107850.0,107840.0,0.5744407]
[1751665354323,0.2523152,107850.0,107840.0,0.5744407]
[1751665354524,0.2523152,107850.0,107840.0,0.6065407]
[1751665355623,0.5476787,107850.0,107840.0,0.6065407]
[1751665356827,0.5476787,107850.0,107840.0,0.68064322]
[1751665357732,0.5466787,107850.0,107840.0,0.68064322]
[1751665358230,0.2513152,107850.0,107840.0,0.68064322]
[1751665358529,0.2493152,107850.0,107840.0,0.68064322]
[1751665358923,0.2493152,107850.0,107840.0,0.71074322]
[1751665359128,0.2513152,107850.0,107840.0,0.71077685]
[1751665359328,0.2523152,107850.0,107840.0,0.71077685]
[1751665360133,0.2493152,107850.0,107840.0,0.71077685]
[1751665362538,0.2160152,107850.0,107840.0,0.71077685]
[1751665364638,0.903973,107860.0,107850.0,0.1854152]
[1751665364639,0.5925609,107860.0,107850.0,0.1854152]
[1751665364838,1.7267244,107860.0,107850.0,0.52731753]
[1751665365039,1.7267244,107860.0,107850.0,0.59093508]
[1751665365640,1.7277244,107860.0,107850.0,0.59093508]
[1751665365834,1.7297244,107860.0,107850.0,0.64649475]
[1751665366035,0.8909244,107860.0,107850.0,0.64649475]
[1751665366340,0.8899244,107860.0,107850.0,0.64649475]
[1751665366540,0.8909244,107860.0,107850.0,0.64649475]
[1751665369136,0.3638,107860.0,107850.0,0.64649475]
[1751665369345,0.003,107860.0,107850.0,0.64649475]
[1751665369640,0.003,107860.0,107850.0,1.00728963]
[1751665369833,0.003,107860.0,107850.0,0.95173508]
[1751665370641,0.003,107860.0,107850.0,1.00727825]
[1751665370944,0.003,107860.0,107850.0,1.007369]
[1751665371443,0.003,107860.0,107850.0,1.00736463]
[1751665371838,0.001,107860.0,107850.0,1.00736463]
[1751665372045,0.9806004,107870.0,107860.0,0.185398]
[1751665372046,0.3608,107870.0,107860.0,0.185398]
[1751665372245,0.3608,107870.0,107860.0,0.90821093]
[1751665372438,0.3608,107870.0,107860.0,0.61284743]
[1751665373445,0.6561635,107870.0,107860.0,0.55730863]
[1751665373840,0.3608,107870.0,107860.0,0.55730863]
[1751665374936,0.5461808,107870.0,107860.0,0.55730863]
[1751665376143,0.3608,107870.0,107860.0,0.85267213]
[1751665376338,1.4794588,107880.0,107870.0,0.1853808]
[1751665376339,1.4331146,107880.0,107870.0,0.1853808]
[1751665376647,2.0584781,107880.0,107870.0,0.64533553]
[1751665376947,1.6976381,107880.0,107870.0,0.64533553]
[1751665377644,0.8590781,107880.0,107870.0,0.64533553]
[1751665377940,1.6995981,107880.0,107870.0,0.64533553]
[1751665378143,1.6995981,107880.0,107870.0,0.38691935]
[1751665378340,1.7005981,107880.0,107870.0,0.38691935]
[1751665378541,1.7005981,107880.0,107870.0,0.34997203]
[1751665378941,0.8620781,107880.0,107870.0,0.71077203]
[1751665379142,0.8620781,107880.0,107870.0,0.34997203]
[1751665379546,0.8590781,107880.0,107870.0,0.34997203]
[1751665379949,0.8590781,107880.0,107870.0,0.38691136]
[1751665380147,0.5637146,107880.0,107870.0,0.38691136]
[1751665380647,0.5637146,107880.0,107870.0,0.39597365]
[1751665381345,0.5637146,107880.0,107870.0,0.38691136]
[1751665381746,0.5637146,107880.0,107870.0,0.68227486]
[1751665381747,0.5173714,107880.0,107870.0,0.68227486]
[1751665382150,0.002,107880.0,107870.0,0.68227486]
[1751665382449,0.002,107880.0,107870.0,0.64533553]
[1751665382849,0.1873636,107880.0,107870.0,0.64533553]
[1751665383148,0.1873636,107880.0,107870.0,0.3355249]
[1751665383448,0.1873636,107880.0,107870.0,0.6308884]
[1751665383849,0.4827271,107880.0,107870.0,0.6308884]
[1751665385153,0.4847271,107880.0,107870.0,0.6308884]
[1751665385652,0.4827271,107880.0,107870.0,0.6308884]
[1751665387455,0.1873636,107880.0,107870.0,0.6308884]
[1751665387953,0.4827271,107880.0,107870.0,0.6308884]
[1751665388757,0.4827271,107880.0,107870.0,0.3355249]
[1751665388956,0.4827271,107880.0,107870.0,0.6308884]
[1751665389457,0.4827271,107880.0,107870.0,0.6318884]
[1751665390154,0.4827271,107880.0,107870.0,0.6308884]
[1751665396856,0.4827271,107880.0,107870.0,0.5754443]
[1751665397056,0.5147271,107880.0,107870.0,0.5754443]
[1751665397258,0.5147271,107880.0,107870.0,0.63081543]
[1751665398260,0.2193636,107880.0,107870.0,0.63081543]
[1751665398460,0.5147271,107880.0,107870.0,0.63081543]
[1751665399153,0.4827271,107880.0,107870.0,0.63081543]
[1751665400257,0.4827271,107880.0,107870.0,0.5754443]
[1751665401856,0.4827271,107880.0,107870.0,0.64927247]
[1751665402863,0.5157271,107880.0,107870.0,0.64927247]
[1751665403759,1e-07,107880.0,107870.0,0.94463597]
[1751665403961,0.51499064,107920.0,107910.0,0.1853121]
[1751665404266,0.9493584,107920.0,107910.0,0.21303327]
[1751665404456,1.3101584,107920.0,107910.0,0.21303327]
[1751665404656,0.1853121,107910.0,107900.0,0.03696156]
[1751665404853,0.1853293,107900.0,107890.0,0.09240391]
[1751665405061,2.2441363,107900.0,107890.0,0.1067544]
[1751665405257,0.07,107900.0,107890.0,0.7760734]
[1751665405559,1.02055196,107920.0,107910.0,0.1853121]
[1751665405757,1.3575992,107920.0,107910.0,0.5319646]
[1751665405963,1.3575992,107920.0,107910.0,0.58737595]
[1751665406165,1.3615992,107920.0,107910.0,0.5620646]
[1751665406360,1.3615992,107920.0,107910.0,0.5926646]
[1751665406855,1.3645992,107920.0,107910.0,0.5926646]
[1751665407063,1.3645992,107920.0,107910.0,0.5557237]
[1751665407767,1.0692357,107920.0,107910.0,0.2603602]
[1751665408067,0.9908949,107920.0,107910.0,0.65395581]
[1751665408264,0.6300949,107920.0,107910.0,0.69088082]
[1751665408464,0.6300949,107920.0,107910.0,0.72358082]
[1751665409168,0.9250949,107920.0,107910.0,0.01433221]
[1751665409462,0.379,107920.0,107910.0,0.63018082]
[1751665409670,0.1942949,107920.0,107910.0,0.72628082]
[1751665409862,0.1942949,107920.0,107910.0,0.68933992]
[1751665410059,0.009,107920.0,107910.0,0.67500771]
[1751665410470,0.009,107920.0,107910.0,0.2814121]
[1751665411164,0.1942949,107920.0,107910.0,0.2814121]
[1751665415172,0.1853121,107910.0,107900.0,0.0369409]
[1751665415366,1.05490771,107910.0,107900.0,0.0369409]
[1751665415572,0.1853293,107900.0,107890.0,0.09235225]
[1751665415767,1.8663574,107900.0,107890.0,0.0369409]
[1751665416070,0.1853464,107890.0,107880.0,0.2223]
[1751665416265,1.03534201,107890.0,107880.0,0.2223]
[1751665416573,0.6417464,107890.0,107880.0,0.0369409]
[1751665417272,0.6417464,107890.0,107880.0,0.2223045]
[1751665417572,0.6417464,107890.0,107880.0,0.2243045]
[1751665417767,0.6427464,107890.0,107880.0,0.2243045]
[1751665418975,0.6467464,107890.0,107880.0,0.2223045]
[1751665419171,0.6467464,107890.0,107880.0,0.2365857]
[1751665419370,0.6487464,107890.0,107880.0,0.2365857]
[1751665422378,0.5531464,107890.0,107880.0,0.2365857]
[1751665422569,0.38190778,107920.0,107890.0,0.2316802]
[1751665422877,0.38190778,107920.0,107910.0,0.97655685]
[1751665422878,0.02110778,107920.0,107910.0,0.97655685]
[1751665423077,0.02110778,107920.0,107910.0,0.99083805]
[1751665423377,0.02110778,107920.0,107910.0,1.08863805]
[1751665423976,0.02410778,107920.0,107910.0,1.08863805]
[1751665425272,0.02610778,107920.0,107910.0,1.07435685]
[1751665426077,0.21140268,107920.0,107910.0,0.68076124]
[1751665426277,0.21140268,107920.0,107910.0,1.07435685]
[1751665427668,0.21140268,107920.0,107910.0,0.68076124]
[1751665427873,0.21140268,107920.0,107910.0,1.07435685]
[1751665430779,0.21140268,107920.0,107910.0,1.03750771]
[1751665433283,0.21140268,107920.0,107910.0,1.07435685]
[1751665434278,0.21140268,107920.0,107910.0,0.68076124]
[1751665434485,0.21140268,107920.0,107910.0,1.12963056]
[1751665434779,0.21140268,107920.0,107910.0,1.09278142]
[1751665435283,0.21140268,107920.0,107910.0,1.12963171]
[1751665436277,0.21140268,107920.0,107910.0,1.074358]
[1751665440984,0.21140268,107920.0,107910.0,0.68076239]
[1751665441184,0.24190268,107920.0,107910.0,0.68076239]
[1751665441386,0.21140268,107920.0,107910.0,0.68076239]
[1751665441784,0.21140268,107920.0,107910.0,1.074358]
[1751665442389,0.02610778,107920.0,107910.0,1.074358]
[1751665442888,0.02610778,107920.0,107910.0,0.68076239]
[1751665443088,0.02610778,107920.0,107910.0,1.074358]
[1751665448081,0.02610778,107920.0,107910.0,1.09278142]
[1751665452195,0.02610778,107920.0,107910.0,1.03750771]
[1751665453699,0.02610778,107920.0,107910.0,1.11286935]
[1751665454088,0.02610778,107920.0,107910.0,1.18669752]
[1751665455795,0.007,107920.0,107910.0,1.18669752]
[1751665456001,0.007,107920.0,107910.0,1.11286935]
[1751665461104,0.007,107920.0,107910.0,1.18669752]
[1751665461301,0.007,107920.0,107910.0,1.11286935]
[1751665461701,0.007,107920.0,107910.0,1.18669752]
[1751665465215,0.007,107920.0,107910.0,0.82589752]
[1751665465516,0.007,107920.0,107910.0,1.18669752]
[1751665465807,0.192295,107920.0,107910.0,0.65284027]
[1751665466002,1.28641861,107920.0,107910.0,0.41624724]
[1751665466208,2.07345861,107920.0,107910.0,0.0369613]
[1751665467312,2.17345861,107920.0,107910.0,0.0369613]
[1751665468210,2.17345861,107920.0,107910.0,0.06466947]
[1751665469214,1.92345861,107920.0,107910.0,0.06466947]
[1751665469917,1.92345861,107920.0,107910.0,0.02770817]
[1751665470312,1.82345861,107920.0,107910.0,0.02770817]
[1751665470818,1.82345861,107920.0,107910.0,0.21302037]
[1751665471221,1.82345861,107920.0,107910.0,0.02770817]
[1751665471419,0.1853122,107910.0,107900.0,0.222281]
[1751665471722,1.96982781,107910.0,107900.0,0.2222906]
[1751665472427,1.97082781,107910.0,107900.0,0.2222906]
[1751665473220,2.15617982,107910.0,107900.0,0.0369613]
[1751665473618,2.15617982,107910.0,107900.0,0.2222906]
[1751665474018,2.37617982,107910.0,107900.0,0.0369613]
[1751665474221,2.37617982,107910.0,107900.0,0.2222906]
[1751665476019,1.52945982,107910.0,107900.0,0.2222906]
[1751665476225,0.051,107910.0,107900.0,1.09117215]
[1751665476520,0.001,107910.0,107900.0,1.10540542]
[1751665477217,0.0234026,107940.0,107910.0,0.0463254]
[1751665477416,0.3434026,107940.0,107930.0,0.93967341]
[1751665477618,0.3434026,107940.0,107930.0,0.95390668]
[1751665477824,0.3434026,107940.0,107930.0,1.01790668]
[1751665478431,0.3454026,107940.0,107930.0,1.01790668]
[1751665479124,0.3474026,107940.0,107930.0,1.05479663]
[1751665479324,0.3474026,107940.0,107930.0,1.07324161]
[1751665480321,0.3474026,107940.0,107930.0,1.10414161]
[1751665480626,0.3474026,107940.0,107930.0,1.08990834]
[1751665480926,0.3524026,107940.0,107930.0,0.72910834]
[1751665481227,0.3524026,107940.0,107930.0,1.08990834]
[1751665481624,0.37212748,107940.0,107930.0,1.08990834]
[1751665482127,0.37212748,107940.0,107930.0,1.12674444]
[1751665482627,0.37212748,107940.0,107930.0,1.08990834]
[1751665484032,0.55738808,107940.0,107930.0,1.07139183]
[1751665485229,0.37212748,107940.0,107930.0,1.07139183]
[1751665485530,0.55738808,107940.0,107930.0,1.07139183]
[1751665485733,0.55738808,107940.0,107930.0,0.67779622]
[1751665485932,0.58968808,107940.0,107930.0,0.67779622]
[1751665486133,0.58968808,107940.0,107930.0,0.64609622]
[1751665486426,0.98328369,107940.0,107930.0,0.6092778]
[1751665486622,0.1852778,107930.0,107920.0,0.26842912]
[1751665486822,1.3966778,107930.0,107920.0,0.22210912]
[1751665487024,1.79027341,107930.0,107920.0,0.22210912]
[1751665487432,1.3966778,107930.0,107920.0,0.22210912]
[1751665487628,1.41640268,107930.0,107920.0,0.22210912]
[1751665488132,1.42340268,107930.0,107920.0,0.22210912]
[1751665488635,1.39030268,107930.0,107920.0,0.22210912]
[1751665488835,1.39030268,107930.0,107920.0,0.25470912]
[1751665489034,1.39030268,107930.0,107920.0,0.28590912]
[1751665489331,0.54210268,107930.0,107920.0,0.28590912]
[1751665490134,0.54210268,107930.0,107920.0,0.64670912]
[1751665491241,0.51200268,107930.0,107920.0,1.04030473]
[1751665491638,0.51200268,107930.0,107920.0,0.64670912]
[1751665491939,0.29200268,107930.0,107920.0,0.64670912]
[1751665501946,0.29200268,107930.0,107920.0,1.04030473]
[1751665502348,0.29200268,107930.0,107920.0,0.64670912]
[1751665503352,0.29200268,107930.0,107920.0,0.70204405]
[1751665504546,0.32260268,107930.0,107920.0,0.63824405]
[1751665504749,0.38430268,107930.0,107920.0,0.63824405]
[1751665506252,0.77789829,107930.0,107920.0,0.60142563]
[1751665506451,1.22321029,107930.0,107920.0,0.58297691]
[1751665506851,1.03789829,107930.0,107920.0,0.58297691]
[1751665508949,0.61320268,107930.0,107920.0,0.58297691]
[1751665509153,0.61320268,107930.0,107920.0,0.64737691]
[1751665511255,1.69552268,107930.0,107920.0,0.64737691]
[1751665511556,0.61320268,107930.0,107920.0,0.64737691]
[1751665511754,1.69536268,107930.0,107920.0,0.64737691]
[1751665511952,1.66472268,107930.0,107920.0,0.64737691]
[1751665512153,1.66472268,107930.0,107920.0,0.66582563]
[1751665513056,0.58260268,107930.0,107920.0,0.66582563]
[1751665513255,1.42820268,107930.0,107920.0,0.66582563]
[1751665514655,1.39760268,107930.0,107920.0,0.66582563]
[1751665514855,0.36672488,107930.0,107920.0,1.05942124]
[1751665515054,0.17672488,107930.0,107920.0,1.05942124]
[1751665515454,0.17672488,107930.0,107920.0,0.66582563]
[1751665515756,0.17672488,107930.0,107920.0,1.05942124]
[1751665516158,0.17672488,107930.0,107920.0,1.00408631]
[1751665520366,0.17672488,107930.0,107920.0,1.07791448]
[1751665522059,0.02672488,107930.0,107920.0,1.07791448]
[1751665522265,0.02672488,107930.0,107920.0,1.00408631]
[1751665522764,0.02672488,107930.0,107920.0,1.07791448]
[1751665524166,0.02672488,107930.0,107920.0,1.00408631]
[1751665529866,0.02672488,107930.0,107920.0,1.07791448]
[1751665531964,0.02672488,107930.0,107920.0,1.36488631]
[1751665537174,0.02672488,107930.0,107920.0,1.43871448]
[1751665537973,0.02672488,107930.0,107920.0,1.36488631]
[1751665538375,0.02672488,107930.0,107920.0,1.43871448]
[1751665539774,0.03672488,107930.0,107920.0,1.43871448]
[1751665541773,0.03672488,107930.0,107920.0,1.63526689]
[1751665542277,0.03672488,107930.0,107920.0,0.91366689]
[1751665542477,0.03672488,107930.0,107920.0,1.63526689]
[1751665544475,0.03672488,107930.0,107920.0,0.91366689]
[1751665544676,0.03672488,107930.0,107920.0,1.63526689]
[1751665555390,0.03672488,107930.0,107920.0,0.91366689]
[1751665555589,0.03672488,107930.0,107920.0,1.63526689]
[1751665555788,0.03672488,107930.0,107920.0,1.64612835]
[1751665558393,0.03672488,107930.0,107920.0,1.57230018]
[1751665559493,0.03672488,107930.0,107920.0,1.64620083]
[1751665569200,0.03672488,107930.0,107920.0,0.92460083]
[1751665569402,0.03672488,107930.0,107920.0,1.64620083]
[1751665573309,0.03672488,107930.0,107920.0,0.92460083]
[1751665573510,0.03672488,107930.0,107920.0,1.64620083]
[1751665585412,0.03672488,107930.0,107920.0,0.92460083]
[1751665585607,0.03672488,107930.0,107920.0,1.64620083]
[1751665586013,0.03672488,107930.0,107920.0,1.57230018]
[1751665586214,0.03672488,107930.0,107920.0,1.64621752]
[1751665586413,0.03672488,107930.0,107920.0,1.57230018]
[1751665586912,0.03672488,107930.0,107920.0,1.64621754]
[1751665588212,0.0006,107950.0,107930.0,0.1852778]
[1751665588415,0.002,107960.0,107950.0,0.1852435]
[1751665588709,0.002,107960.0,107950.0,0.92589633]
[1751665588908,0.002,107960.0,107950.0,0.95779633]
[1751665589209,0.002,107960.0,107950.0,0.88387897]
[1751665590107,0.007,107960.0,107950.0,0.89300283]
[1751665590509,0.007,107960.0,107950.0,1.18807684]
[1751665591317,0.007,107960.0,107950.0,1.24333823]
[1751665591611,0.007,107960.0,107950.0,0.98156422]
[1751665591816,0.007,107960.0,107950.0,1.82564422]
[1751665594207,0.007,107960.0,107950.0,1.84006818]
[1751665596320,0.007,107960.0,107950.0,1.29106219]
[1751665596513,0.007,107960.0,107950.0,2.13454219]
[1751665598413,0.007,107960.0,107950.0,1.83946818]
[1751665599021,0.007,107960.0,107950.0,2.13454219]
[1751665599412,0.007,107960.0,107950.0,1.83946818]
[1751665601116,0.007,107960.0,107950.0,2.12011823]
[1751665601321,0.007,107960.0,107950.0,2.13438627]
[1751665602422,0.007,107960.0,107950.0,1.83931226]
[1751665602823,0.007,107960.0,107950.0,2.13438627]
[1751665603824,0.007,107960.0,107950.0,2.13437347]
[1751665604422,0.007,107960.0,107950.0,1.83869946]
[1751665604923,0.007,107960.0,107950.0,0.99581946]
[1751665605123,1.04763832,107960.0,107950.0,0.44117809]
[1751665605319,0.1852435,107950.0,107940.0,0.0367944]
[1751665605620,0.0463222,107930.0,107910.0,1.03170337]
[1751665605825,0.185295,107920.0,107910.0,0.72731199]
[1751665606019,0.185295,107920.0,107910.0,1.022386]
[1751665606319,0.0196383,107930.0,107920.0,0.185295]
[1751665606524,0.0196383,107930.0,107920.0,1.25590441]
[1751665606722,0.0196383,107930.0,107920.0,1.28760441]
[1751665607322,0.0196383,107930.0,107920.0,2.07690302]
[1751665609518,0.0196383,107930.0,107920.0,2.37197703]
[1751665610022,1e-07,107930.0,107920.0,2.37197703]
[1751665610222,1e-07,107930.0,107920.0,2.44589439]
[1751665611226,1.14094181,107960.0,107950.0,0.1852435]
[1751665611427,1.41094181,107960.0,107950.0,0.48031751]
[1751665611630,1.41094181,107960.0,107950.0,0.54281751]
[1751665612330,1.05014181,107960.0,107950.0,0.54281751]
[1751665612531,1.41094181,107960.0,107950.0,0.54281751]
[1751665613132,1.18150181,107960.0,107950.0,0.54281751]
[1751665613327,1.41594181,107960.0,107950.0,0.54281751]
[1751665615733,1.41594181,107960.0,107950.0,0.51211751]
[1751665616132,1.18150181,107960.0,107950.0,0.51211751]
[1751665617328,0.1852435,107950.0,107940.0,0.85002403]
[1751665617530,0.54441751,107950.0,107940.0,0.5923562]
[1751665617728,0.57511751,107950.0,107940.0,0.5923562]
[1751665619038,0.57911751,107950.0,107940.0,0.5923562]
[1751665619734,0.67747558,107950.0,107940.0,0.5923562]
[1751665619931,1.52163558,107950.0,107940.0,0.5923562]
[1751665620238,1.84691558,107950.0,107940.0,0.5923562]
[1751665621139,1.4534835,107950.0,107940.0,0.5923562]
[1751665621340,1.84691558,107950.0,107940.0,0.5923562]
[1751665622341,2.20771558,107950.0,107940.0,0.2315562]
[1751665622540,2.20771558,107950.0,107940.0,0.1852448]
[1751665622742,2.02243558,107950.0,107940.0,0.1852448]
[1751665623037,0.1852606,107940.0,107930.0,0.64760012]
[1751665623236,0.1852778,107930.0,107920.0,0.6940139]
[1751665623442,1.5080578,107930.0,107920.0,0.6940139]
[1751665623639,2.08680188,107930.0,107920.0,0.3332139]
[1751665623835,2.08680188,107930.0,107920.0,0.231603]
[1751665625542,0.565312,107930.0,107920.0,0.231603]
[1751665625744,0.48654988,107970.0,107920.0,2.36183166]
[1751665626039,0.85944988,107970.0,107960.0,0.93945838]
[1751665626340,0.62404988,107970.0,107960.0,0.5460263]
[1751665626532,0.62404988,107970.0,107960.0,0.7947383]
[1751665626734,0.81314748,107970.0,107960.0,0.8263383]
[1751665626942,0.39253168,107970.0,107960.0,1.21977038]
[1751665627240,0.59503168,107970.0,107960.0,1.23400003]
[1751665627441,0.78024088,107970.0,107960.0,1.23400003]
[1751665628443,0.78524088,107970.0,107960.0,1.23400003]
[1751665630349,0.78524088,107970.0,107960.0,1.21977038]
[1751665630848,0.78524088,107970.0,107960.0,0.8263383]
[1751665631056,0.78524088,107970.0,107960.0,0.7933383]
[1751665631347,0.78524088,107970.0,107960.0,0.8236383]
[1751665632452,0.78524088,107970.0,107960.0,0.6403263]
[1751665632644,0.78524088,107970.0,107960.0,0.8236383]
[1751665635051,1.63868088,107970.0,107960.0,0.8236383]
[1751665635251,0.78524088,107970.0,107960.0,0.8236383]
[1751665635652,0.78524088,107970.0,107960.0,0.86042723]
[1751665637051,0.54984088,107970.0,107960.0,0.86042723]
[1751665637354,0.78520088,107970.0,107960.0,0.86042723]
[1751665637550,0.54984088,107970.0,107960.0,0.86042723]
[1751665637751,0.78520088,107970.0,107960.0,0.86042723]
[1751665638648,0.78520088,107970.0,107960.0,1.25385931]
[1751665638960,0.54984088,107970.0,107960.0,1.25385931]
[1751665639159,0.78520088,107970.0,107960.0,1.25385931]
[1751665639360,0.54984088,107970.0,107960.0,1.25385931]
[1751665639560,0.78520088,107970.0,107960.0,1.25385931]
[1751665639860,0.54984088,107970.0,107960.0,1.25385931]
[1751665640059,0.78520088,107970.0,107960.0,1.25385931]
[1751665640259,0.54984088,107970.0,107960.0,1.25385931]
[1751665640462,0.78520088,107970.0,107960.0,1.25385931]
[1751665642965,0.54984088,107970.0,107960.0,1.25385931]
[1751665643160,0.78520088,107970.0,107960.0,1.25385931]
[1751665644870,0.78520088,107970.0,107960.0,0.86042723]
[1751665645470,0.7655692,107970.0,107960.0,0.86042723]
[1751665646273,0.7655692,107970.0,107960.0,0.87128582]
[1751665646869,0.7655692,107970.0,107960.0,0.51048582]
[1751665647169,0.7655692,107970.0,107960.0,0.87128582]
[1751665648270,0.7655692,107970.0,107960.0,1.2647179]
[1751665648464,0.7655692,107970.0,107960.0,1.0814059]
[1751665649271,0.7655692,107970.0,107960.0,0.68797382]
[1751665650373,0.7655692,107970.0,107960.0,0.68797383]
[1751665653680,0.7655692,107970.0,107960.0,0.87128583]
[1751665654377,0.7655692,107970.0,107960.0,0.92657333]
[1751665654581,0.7655692,107970.0,107960.0,0.9266406]
[1751665655480,0.7655692,107970.0,107960.0,0.8897844]
[1751665658485,0.7655692,107970.0,107960.0,0.8344969]
[1751665659078,0.7655692,107970.0,107960.0,0.83449685]
[1751665663284,0.7655692,107970.0,107960.0,1.22792894]
[1751665666687,0.7655692,107970.0,107960.0,1.28336593]
[1751665668489,0.7655692,107970.0,107960.0,1.10005393]
[1751665668796,0.7655692,107970.0,107960.0,1.28336593]
[1751665670391,0.7655692,107970.0,107960.0,0.92256593]
[1751665670692,1.6162092,107970.0,107960.0,1.28336593]
[1751665671887,1.6162092,107970.0,107960.0,1.47968581]
[1751665672291,0.5302092,107970.0,107960.0,1.47968581]
[1751665672492,1.6160492,107970.0,107960.0,1.47968581]
[1751665673494,0.5302092,107970.0,107960.0,1.47968581]
[1751665673694,1.6158092,107970.0,107960.0,1.47968581]
[1751665674090,1.6158092,107970.0,107960.0,1.46882725]